Cogmind - Beta 16.1 @@@ ROGUE MODE // 2026.03.10 @ 01:21:42 Player: TheSkyeDoctor Result: Destroyed by D-53 Grenadier with Mini Grenade Launcher Performance ------------- Evolutions (1) 500 Regions Visited (3) 600 Robots Destroyed (62) 310 Value Destroyed (1576) 1576 Prototype IDs (4) 80 Alien Tech Used (0) 0 Bonus (0) 0 TOTAL SCORE: 3066 Bonus ------- None Cogmind --------- Core Integrity 0/400 Matter 237/300 Energy 238/265 System Corruption 0% Temperature Cool (0) Movement Flying (752) Ox9 Location -9/Mines Parts ------- > --- POWER (1) -------- Improved Ion Engine > --- PROPULSION (2) --- Cesium-ion Thruster Cesium-ion Thruster > --- UTILITY (4) ------ Huge Storage Unit Signal Interpreter Targeting Computer Core Shielding > --- WEAPON (2) ------- Heavy Assault Rifle Rocket Launcher > --- INVENTORY (25) --- Light Nuclear Core Light Treads Improved Treads Wheel Compact Wheel Improved Flight Unit Improved Flight Unit Cesium-ion Thruster Cesium-ion Thruster Small Storage Unit High-capacity Matter Pod (200) Structural Scanner Seismic Detector Improved Targeting Computer Medium Armor Plating Hardened Light Armor Plating Hardened Light Armor Plating Hardened Light Armor Plating Insulated Plating Hacking Suite Hacking Suite Hacking Suite Beam Rifle Peak State ------------ > --- POWER ------------ Improved Ion Engine > --- PROPULSION ------- Light Treads Improved Treads > --- UTILITY ---------- Huge Storage Unit Signal Interpreter Targeting Computer Hardened Light Armor Plating > --- WEAPON ----------- Heavy Particle Gun Improved Assault Rifle > --- INVENTORY -------- Light Nuclear Core Improved Treads Improved Treads Wheel Compact Wheel Improved Flight Unit Improved Flight Unit Cesium-ion Thruster Cesium-ion Thruster Cesium-ion Thruster Cesium-ion Thruster Small Storage Unit High-capacity Matter Pod Structural Scanner Visual Processing Unit Improved Terrain Scanner Seismic Detector Improved Targeting Computer Core Shielding Medium Armor Plating Hardened Light Armor Plating Hardened Light Armor Plating Hardened Light Armor Plating Insulated Plating Beam Rifle [Rating: 22] Favorites ----------- Power Improved Ion Engine Engine Improved Ion Engine Power Core Light Nuclear Core Propulsion Light Treads Treads Light Treads Flight Unit Cesium-ion Thruster Utility Huge Storage Unit Device Seismic Detector Storage Huge Storage Unit Processor Targeting Computer Protection Hardened Light Armor Plating Weapon Beam Rifle Energy Gun Beam Rifle Ballistic Gun Heavy Assault Rifle Launcher Mini Grenade Launcher Build | -11 -10 -9 -9 ------- Run | Yrd Mat Mat Min Slots Evolved 2 | . . 2 . Power . | . . . . Propulsion . | . . . . Utility 2 | . . 2 . Weapon . | . . . . Parts Attached 39 | 7 . 26 6 Power 5 | 1 . 4 . Engine 4 | 1 . 3 . Core 1 | . . 1 . Reactor . | . . . . Propulsion 12 | 2 . 7 3 Treads 10 | 2 . 7 1 Leg . | . . . . Wheel . | . . . . Hover . | . . . . Flight 2 | . . . 2 Utility 8 | 2 . 5 1 Device 1 | 1 . . . Storage 2 | 1 . 1 . Processor 2 | . . 2 . Hackware . | . . . . Protection 3 | . . 2 1 Artifact . | . . . . Weapon 14 | 2 . 10 2 Energy Gun 6 | . . 6 . Energy Cannon . | . . . . Ballistic Gun 6 | 2 . 4 . Ballistic Cannon . | . . . . Launcher 2 | . . . 2 Special Weapon . | . . . . Impact Weapon . | . . . . Slashing Weapon . | . . . . Piercing Weapon . | . . . . Special Melee Weapon . | . . . . Unidentified Prototypes 4 | . . 4 . Parts Lost 17 | . . 14 3 Power 4 | . . 4 . Propulsion 7 | . . 5 2 Utility 2 | . . 1 1 Weapon 4 | . . 4 . Highest Loss Streak 4 | . . 4 2 To Critical Strikes . | . . . . Average Backups 18 | 3 6 18 24 Power 1 | . 1 1 1 Propulsion 6 | 1 2 6 9 Utility 9 | . 2 9 13 Weapon . | . . . 1 Tool/Special . | . . . . Unused Backups 23 | . . 4 19 Power 2 | . . 1 1 Propulsion 7 | . . . 7 Utility 14 | . . 3 11 Weapon . | . . . . Tool/Special . | . . . . Average Slot Usage (%) 94 | . 100 92 100 Engine 10 | . 14 9 11 Core 1 | . . 1 . Treads 22 | . 28 21 21 Device 1 | . 14 . . Storage 11 | . 14 11 11 Processor 17 | . . 18 22 Protection 9 | . . 9 11 Energy Gun 8 | . . 10 1 Ballistic Gun 11 | . 28 9 11 Launcher 1 | . . . 9 Peak Build Rating 22 | 7 8 22 20 Average Rating 15 | 5 7 16 18 On Entrance 8 | . 7 8 19 Avg Prop Armor Cover (%) . | . . . . Naked Turns . | . . . . Heaviest Build 101 | 15 15 101 98 Greatest Support 43 | 40 40 43 43 Greatest Overweight (x) 4 | . . 4 2 Average Overweight (x) 1 | . . 1 2 Largest Inventory Capacity 25 | 8 8 25 25 Average Capacity 22 | 7 8 23 25 Most Carried 25 | 4 7 25 25 Average Carried 18 | 3 6 18 24 Final Capacity 25 | 8 8 25 25 Final Carried 25 | 4 7 25 23 Class Distribution -------------------- 84% | Mutant 15% | Scavenger-Mutant Dominant Class ---------------- Mutant | -10/Materials Mutant | -9/Materials Mutant | -9/Mines Resources | -11 -10 -9 -9 ----------- Run | Yrd Mat Mat Min Matter Collected 1426 | 300 144 934 48 Remotely . | . . . . Salvage Created 2080 | 101 179 1702 98 Parts 124 | 8 9 96 11 Haulers Intercepted 1 | . . 1 . Recyclers Shooed 1 | 1 . . . Parts Field Recycled . | . . . . Retrieved Matter . | . . . . Parts Self-Destructed . | . . . . Prevented . | . . . . Parts Restored . | . . . . Kills | -11 -10 -9 -9 ------- Run | Yrd Mat Mat Min Combat Hostiles Destroyed 45 | . 3 36 6 Guns 37 | . 3 34 . AOE 6 | . . . 6 Classes Destroyed 9 | 2 2 5 . Worker 3 | . . 3 . Builder 2 | . . 2 . Tunneler 2 | 2 . . . Hauler 1 | . . 1 . Recycler 2 | 1 . 1 . Watcher 7 | . 2 5 . Swarmer 13 | . . 10 3 Grunt 22 | . 3 16 3 Sentry 10 | . . 10 . Best Kill Streak 6 | 3 2 6 3 Combat Bots Only 5 | . 2 5 3 Max Kills in Single Turn 3 | 1 1 2 3 Gunslinging . | . . . . Exploded 3 | . . . 3 Melee . | . . . . Uniques/NPCs Destroyed . | . . . . Combat | -11 -10 -9 -9 -------- Run | Yrd Mat Mat Min Hostile Shots Fired 325 | . 13 294 18 Missed 99 | . 4 93 2 Hits 226 | . 9 201 16 Projectile 226 | . 9 201 16 AOE 10 | . . . 10 Critical Strikes 1 | . . 1 . Damage Taken 2914 | . 113 2261 540 Core 453 | . 29 325 99 Absorbed by Shields . | . . . . Redirected to Shielding 15 | . . . 15 Core Remaining (%) 94 | 100 88 . . Volleys Fired 169 | 5 14 145 5 Largest 2 | 2 2 2 2 Hottest 112 | 40 40 112 56 Shots Fired 319 | 10 28 271 10 Gun 314 | 10 28 271 5 Cannon . | . . . . Launcher 5 | . . . 5 Special . | . . . . Kinetic 226 | 10 28 183 5 Thermal 88 | . . 88 . Explosive 5 | . . . 5 Electromagnetic . | . . . . Robot Hit Streak 19 | 7 9 18 19 Robot Miss Streak 5 | 1 2 5 2 Penetration Max . | . . . . Secondary Targets 6 | . . 6 . Max Gunslinging Chain 1 | . . 1 . Shots Hit Robots 222 | 8 21 188 5 Core Hits 92 | 4 9 71 8 Critical Kills 1 | . . 1 . Critical Parts Destroyed . | . . . . Critical Strikes 5 | . . 5 . Burn 4 | . . 4 . Destroy 1 | . . 1 . Melee Attacks . | . . . . Impact . | . . . . Slashing . | . . . . Piercing . | . . . . Sneak Attacks . | . . . . Combat Hostiles . | . . . . Follow-up Attacks . | . . . . Damage Inflicted 3679 | 110 252 2827 490 Guns 3201 | 110 252 2827 12 Cannons . | . . . . Explosions 478 | . . . 478 Melee . | . . . . Ramming . | . . . . Kinetic 2265 | 110 252 1891 12 Thermal 1029 | . . 936 93 Explosive 385 | . . . 385 Electromagnetic . | . . . . Impact . | . . . . Slashing . | . . . . Piercing . | . . . . Highest Corruption . | . . . . Average Corruption . | . . . . Corruption Purged . | . . . . Corruption Blocked . | . . . . Overload Shots . | . . . . Overflow Damage 30 | . . . 30 Projectiles . | . . . . Explosions 30 | . . . 30 Melee . | . . . . Knockbacks . | . . . . Impact . | . . . . Kinetic . | . . . . Secondary . | . . . . Self-Inflicted Damage 46 | . . . 46 Shots 2 | . . . 2 Rammed . | . . . . Targets Rammed . | . . . . Kicked . | . . . . Crushed . | . . . . Highest Temperature 309 | . 2 309 9 Average Temperature 74 | . 2 75 7 Received Heat Transfer 783 | . 63 696 24 Effects 2 | . . 2 . Interference 2 | . . 2 . Siege Activations . | . . . . Martial Activations . | . . . . Shielding Activations . | . . . . Robots Disrupted . | . . . . Combat Hostiles . | . . . . Robots Corrupted . | . . . . Combat Hostiles . | . . . . Parts Fried . | . . . . Impact Corruptions . | . . . . Robots Melted 2 | . . 2 . Combat Hostiles 2 | . . 2 . Parts Melted 11 | . . 11 . Heat Transferred 2690 | . . 2590 100 Parts Sabotaged . | . . . . Parts Stolen . | . . . . Parts Stripped . | . . . . Power Chain Reactions . | . . . . Alert | -11 -10 -9 -9 ------- Run | Yrd Mat Mat Min Maximum Alert Level 1 | . . 1 1 Low Security (%) 49 | 100 100 34 96 Level 1 50 | . . 65 3 Level 2 . | . . . . Level 3 . | . . . . Level 4 . | . . . . Level 5 . | . . . . High Security . | . . . . Max Security . | . . . . Peak Influence 375 | 10 40 375 211 Initial 142 | . . . 142 Average 198 | 1 6 244 85 Influence Increases 1513 | 15 102 1207 189 Destroy 0b10 Robot/C 900 | . 60 720 120 Destroy 0b10 Robot/NC 85 | 15 10 60 . Destroy Leader 246 | . 14 212 20 Successful Hack 18 | . 18 . . Disable Machine 45 | . . 30 15 Destroy Structure 39 | . . 5 34 Lose Combat Pursuer 180 | . . 180 . Influence Decreases 1513 | 15 102 840 556 Entered New Map 225 | . . . 225 Time Decay 1130 | 15 102 700 313 Lost Part 158 | . . 140 18 Squads Dispatched 4 | . . 4 . Investigation 2 | . . 2 . Extermination . | . . . . Reinforcement 2 | . . 2 . Assault . | . . . . Garrison . | . . . . Intercept . | . . . . Searches Triggered . | . . . . Construction Impeded . | . . . . Haulers Reinforced . | . . . . Active Scanning Responses . | . . . . Cargo Convoy Interrupts . | . . . . Stealth | -11 -10 -9 -9 --------- Run | Yrd Mat Mat Min Distress Signals 5 | . . 5 . Communications Jammed . | . . . . Distress Signals . | . . . . Times Spotted 66 | . 5 54 7 Peak Tracking Total 6 | . 2 6 3 Tactical Retreats 7 | . . 7 . Traps | -11 -10 -9 -9 ------- Run | Yrd Mat Mat Min Traps Triggered 2 | . . 2 . Indirectly . | . . . . Trap Hack Attempts . | . . . . Triggered . | . . . . Disarmed . | . . . . Reprogrammed . | . . . . Reused . | . . . . Traps Extracted . | . . . . Installed . | . . . . Triggered . | . . . . Machines | -11 -10 -9 -9 ---------- Run | Yrd Mat Mat Min Machines Disabled 3 | . . 2 1 Max in Single Turn 1 | . . 1 1 Machines Repaired . | . . . . Machines Dismantled . | . . . . Machines Sabotaged . | . . . . Overloaded Fab Kills . | . . . . Hacking | -11 -10 -9 -9 --------- Run | Yrd Mat Mat Min Machines Accessed 15 | . 4 11 . Terminals 12 | . 4 8 . Fabricators . | . . . . Repair Stations . | . . . . Recycling Units 1 | . . 1 . Scanalyzers 2 | . . 2 . Garrison Access . | . . . . Total Hacks 27 | . 9 18 . Successful 7 | . 5 2 . Failed 19 | . 4 15 . Catastrophic 7 | . . 7 . Database Lockouts 1 | . . 1 . Manual 21 | . 9 12 . Terminals 21 | . 9 12 . Fabricators . | . . . . Repair Stations . | . . . . Recycling Units 3 | . . 3 . Scanalyzers 3 | . . 3 . Garrison Access . | . . . . Terminal Hacks 3 | . 3 . . Level Access Points 1 | . 1 . . Branch Access Points 1 | . 1 . . Terminal Index 1 | . 1 . . Fabricator Hacks . | . . . . Repair Station Hacks . | . . . . Recycling Unit Hacks 1 | . . 1 . Retrieve Components 1 | . . 1 . Scanalyzer 1 | . . 1 . Retrieve Study 1 | . . 1 . Garrison Access Hacks . | . . . . Unauthorized Hacks 2 | . 2 . . Terminals 2 | . 2 . . Assimilate 1 | . 1 . . Botnet 1 | . 1 . . Fabricators . | . . . . Repair Stations . | . . . . Recycling Units . | . . . . Scanalyzers . | . . . . Garrison Access . | . . . . Data Cores Recovered . | . . . . Used . | . . . . Hacking Detections 13 | . 3 10 . Full Trace Events 1 | . 1 . . Feedback Events . | . . . . Feedback Blocked . | . . . . Robot Schematics Acquired . | . . . . Robots Built . | . . . . Authchips . | . . . . Time . | . . . . Total Robot Build Rating . | . . . . Part Schematics Acquired . | . . . . Parts Built . | . . . . Authchips . | . . . . Time . | . . . . Total Part Build Rating . | . . . . Part Studies Acquired 1 | . . 1 . Parts Repaired . | . . . . Time . | . . . . Parts Recycled . | . . . . Recycled Matter . | . . . . Retrieved Matter . | . . . . Retrieved Components 3 | . . 3 . Parts Scanalyzed . | . . . . Part Schematics Acquired . | . . . . Parts Damaged . | . . . . Bothacking | -11 -10 -9 -9 ------------ Run | Yrd Mat Mat Min Used RIF Installer . | . . . . Robots Hacked . | . . . . Non-combat . | . . . . Combat . | . . . . Robot Hacks Applied . | . . . . Relay Couplers Released . | . . . . Fabnet Peak Effective % . | . . . . Robots Rewired . | . . . . Allies Hacked . | . . . . Hacks Repelled . | . . . . Allies | -11 -10 -9 -9 -------- Run | Yrd Mat Mat Min Total Allies . | . . . . Largest Group . | . . . . Highest-Rated Group . | . . . . Highest-Rated Ally . | . . . . Total Orders . | . . . . Ally Attacks . | . . . . Total Damage . | . . . . Kills . | . . . . Allies Corrupted . | . . . . Allies Melted . | . . . . Intel | -11 -10 -9 -9 ------- Run | Yrd Mat Mat Min Active Infowar (turns) 670 | 44 462 164 . Seismic 670 | 44 462 164 . Robot Analysis Total . | . . . . Derelict Logs Recovered . | . . . . Drone Launches . | . . . . Drone Recoveries . | . . . . Exploration | -11 -10 -9 -9 ------------- Run | Yrd Mat Mat Min Turns Passed 5500 | 119 462 4194 725 Spaces Moved 1977 | 58 247 1426 246 Core 2 | 2 . . . Treads 1975 | 56 247 1426 246 Legs . | . . . . Wheels . | . . . . Hover . | . . . . Flight . | . . . . Fastest Speed 50 | 50 160 160 240 Average Speed 244 | 156 160 256 279 Slowest Speed 480 | 160 160 480 280 Overloaded Moves . | . . . . Propulsion Burnouts . | . . . . Robots Hopped . | . . . . Potential Cave-ins . | . . . . Cave-ins Triggered . | . . . . Exploration Rate (%) 50 | 3 39 98 60 Regions Visited 3 Branch Regions 1 Pre-discovered Areas . | . . . . Known Exits Taken 2 | . 1 1 . Unknown Exits Taken 1 | 1 . . . Scrap Searched 1 | . . . 1 Spaces Dug . | . . . . Terrain Destroyed 42 | . . . 42 Melee . | . . . . Projectile . | . . . . AOE 42 | . . . 42 Terrain Rammed . | . . . . Walls Destroyed . | . . . . Machines Disabled . | . . . . Actions | -11 -10 -9 -9 --------- Run | Yrd Mat Mat Min Total 2331 | 74 286 1698 273 Wait 86 | . 23 49 14 Move 1974 | 57 246 1425 246 Hop . | . . . . Pick Up 44 | 5 3 35 1 Fast Attach 13 | 6 . 7 . Attach 17 | 1 . 13 3 Detach 1 | . . 1 . Swap 14 | . . 11 3 Drop 13 | . . 12 1 Fire 169 | 5 14 145 5 Melee . | . . . . Ram . | . . . . Kick . | . . . . Crush . | . . . . Escape Stasis . | . . . . Rewire . | . . . . Trap . | . . . . Miscellaneous . | . . . . Route ------- -11/Scrapyard -10/Materials (discovered 5 exits: *Mat x3 / *Min x2) -9/Materials (discovered 4 exits: *Mat x2 / *Min x2) -9/Mines (discovered 2 exits: *Mat / *Zio) History --------- Turn | Location | Event 16 | -11/Scrapyard | Discovered new exit (range 16) 120 | -11/Scrapyard | Entered Materials 311 | -10/Materials | Build established: Mutant 363 | -10/Materials | Identified exit to Mines 459 | -10/Materials | Identified exit to Materials 582 | -10/Materials | Entered another Materials area 582 | -9/Materials | Evolved 2 slots: Utility x2 777 | -9/Materials | Lost 3 parts (1p1n1u) 1026 | -9/Materials | Discovered new exit (range 13) 1174 | -9/Materials | Build established: Scavenger-Mutant 1466 | -9/Materials | Core integrity fell below 50% 1909 | -9/Materials | Central database locked down 2061 | -9/Materials | Build established: Mutant 2272 | -9/Materials | Lost 4 parts (1p2n1w) 2431 | -9/Materials | Discovered new exit (range 9) 2993 | -9/Materials | Discovered new exit (range 13) 3019 | -9/Materials | Core integrity fell below 20% 3110 | -9/Materials | Identified exit to Materials 3707 | -9/Materials | Discovered exit to Materials (range 12) 4767 | -9/Materials | Identified exit to Mines 4776 | -9/Materials | Entered Mines 5095 | -9/Mines | Discovered exit to Materials (range 10) 5422 | -9/Mines | A Derelict revealed a hidden shortcut to a safe place 5424 | -9/Mines | Identified exit to Zion 5454 | -9/Mines | Assembled infested the area 5463 | -9/Mines | Received a Rocket Launcher from a helpful Derelict 5501 | -9/Mines | Destroyed by D-53 Grenadier with Mini Grenade Launcher Last Messages --------------- 05459_ DX-4XY(g): "Pshh... whatever." 05460_ DX-4XY(g): "Everyone knows a good old rocket launcher goes a long way." 05461_ DX-4XY(g): "Need to get rid of a swarm? Done. Need a big hole in the wall? Done." 05462_ DX-4XY(g): "Need a small hole in the wall? Leave that to the mining laser wimps, I say!" 05463_ DX-4XY(g): "Would you like a rocket launcher? I know I would if I were you, so I'm going to lend you mine." 05463_ DX-4XY(g) slips back into the shadows. 05486_ Dropped Mni. Grenade Launcher. 05491_ C-45 Heavy ARC bursts open, deploying its payload. 05491_ D-53 Grenadier unfolds itself. 05491_ K-01 Serf destroyed. 05492_ Imp. Treads destroyed. 05499_ Lgt. Treads+ destroyed. 05501_ The unstable cave ceiling collapses. Map ----- +----------------------------------------------------+ | ???????????????????????????????????????????????? | | ???????????????????????????????????????????????? | | ???????????????????????????????????????????????? | | ???????????????????????????????????????????????? | | ???????????????????????????????????????????????? | | ???????????????????????????????????????????????? | | ???????????????????????????????????????????????? | | ???????????????????????????????????????????????? | | ???????????????????????????????????????????????? | | ???????????????????????????????????????????????? | | ???????????????????????????????????????????????? | | ???????????????????????????????????????????????? | | ???????????????????????????????????????????????? | | ???????????????????????????????????????????????? | | ?????????????###???????????????????????????????? | | ?????????????? #??????????????????????????????? | | ??????????????# #??????????????????????????????? | | ??????????????# ###????????????????????????????? | | ??????????????# ##????????????#??????????????? | | ??????????????# #??????????? ???????????????? | | ?????????????## #??######## #???????????????? | | ?????????????# #### # #???????????????? | | ?????????????# ##??????????????? | | ?????????????# t d d ####???????????? | | ?????????????## #???????????? | | ??????????????# ### @ #???????????? | | ??????????????# ##?# ##???????????? | | ??????????????#=>#??# ####????????????? | | ############### #??## #???????????????? | | = #???## # #???????????????? | | #????## # #???????????????? | | ##################?????### ??????????????? | | ###??????????????????????? ###?????????????? | | ##??????????????????????# ##???????????????? | | ##??????????????????????####????????????????? | | #??????????????????????????????????????????? | | #??????????????????????????????????????????? | | ##??????????????????????????????????????????? | | ###???????????????????????????????????????????? | | ##?????????????????????????????????????????????? | | #??????????????????????????????????????????????? | | ???????????????????????????????????????????????? | | | | | | | | | | | | | | | | | +----------------------------------------------------+ Best States ------------- Heat Dissipation 28 Energy Generation 14 Energy Capacity 265 Matter Stores 300 Matter Capacity 300 Sight Range 16 Terrain Scan Density 10 Armor Coverage 300 Core Shielding 20 Evasion (%) 40 Targeting Accuracy 5 Recoil Reduction 2 Item Schematics ----------------- None Robot Schematics ------------------ None Fabricated ------------ Nothing Repaired ---------- Nothing Studied --------- Lgt. Treads | -9/Materials | Hacked Alien Tech Used ----------------- None Achievements -------------- None Challenges ------------ None Game ------ Seed GuidedWardroneShield Manual? 0 Play Time 00:23:48 Cumulative 58.9 hours Start 2026.03.10 @ 00:58:12 End 2026.03.10 @ 01:21:42 Sessions 1 Manual Loads 0 Difficulty Rogue Special Mode None Game No. 135 Rogue 135 Adventurer 0 Explorer 0 Win Type - Total 0 Types 0/0/0/0/0/0/0/0/0/0 Lore% 35 Gallery% 41 Achievement% 33 Wizard Run 0 Options --------- Layout 2 ASCII 0 Keyboard 1 Movement Arrows Keybinds 0 Fullscreen 1 Font 24/Smallcaps Map View 50x44 Zoom Use 0% Tactical HUD 1 Map Filters NONE Filters NONE Steam 1 RUN: a010e73f-5806-452d-8607-6f5de0293bbb